bitfinex/quotes_BTCUSD_20220405
["timestamp","ask_amount","ask_price","bid_price","bid_amount"]
[1649128187712,0.22019585,46695.0,46693.0,0.507132]
[1649128188115,0.22019585,46696.0,46693.0,0.507132]
[1649128188414,0.22019585,46696.0,46694.0,0.053533]
[1649128188513,0.26418547,46699.0,46695.0,0.321846]
[1649128188514,0.22019585,46697.0,46695.0,0.321846]
[1649128188713,0.22019585,46698.0,46695.0,0.321846]
[1649128188813,0.22019585,46698.0,46693.0,0.205533]
[1649128188913,0.17612935,46695.0,46694.0,0.20766639]
[1649128189115,0.22019585,46698.0,46694.0,0.50766639]
[1649128189116,0.17612935,46698.0,46694.0,0.50766639]
[1649128189715,0.17612935,46698.0,46694.0,0.56119739]
[1649128189816,0.17612935,46698.0,46694.0,0.61473039]
[1649128189914,0.17612935,46698.0,46694.0,0.61419]
[1649128190119,0.17612935,46698.0,46694.0,0.61473039]
[1649128190614,0.17612935,46699.0,46694.0,0.61473039]
[1649128191152,0.17612935,46700.0,46694.0,0.61419]
[1649128191355,0.17612935,46700.0,46694.0,0.61453123]
[1649128191652,0.17612935,46699.0,46694.0,0.61453123]
[1649128192353,0.17612935,46699.0,46694.0,0.61419]
[1649128192603,0.17612935,46699.0,46694.0,0.61473072]
[1649128193003,0.17612935,46699.0,46694.0,0.31461886]
[1649128193458,0.17612935,46699.0,46694.0,0.20766672]
[1649128193554,0.17612935,46699.0,46694.0,0.207126]
[1649128193804,0.17612935,46699.0,46694.0,0.20766672]
[1649128194555,0.17612935,46698.0,46694.0,0.20766672]
[1649128194694,0.17612935,46698.0,46694.0,0.207126]
[1649128194895,0.17612935,46698.0,46694.0,0.20766672]
[1649128195947,0.17612935,46698.0,46694.0,0.207126]
[1649128196147,0.17612935,46698.0,46694.0,0.20768356]
[1649128197097,0.17612935,46698.0,46694.0,0.207126]
[1649128197300,0.17612935,46698.0,46694.0,0.20768356]
[1649128198148,0.22019585,46700.0,46694.0,0.20768356]
[1649128198149,0.17612935,46697.0,46694.0,0.20768356]
[1649128198249,0.17612935,46698.0,46694.0,0.20768356]
[1649128198350,0.17612935,46698.0,46694.0,0.207126]
[1649128198749,0.17612935,46698.0,46696.0,0.00217203]
[1649128198851,0.17612935,46698.0,46697.0,0.207112]
[1649128200502,0.17612935,46699.0,46697.0,0.207112]
[1649128202056,0.17612935,46698.0,46697.0,0.207112]
[1649128202202,0.17612935,46699.0,46697.0,0.207112]
[1649128202298,0.17612935,46699.0,46697.0,0.20711]
[1649128202498,0.17612935,46698.0,46697.0,0.20711]
[1649128203399,0.17612935,46698.0,46696.0,0.207116]
[1649128204402,0.17612935,46699.0,46696.0,0.207116]
[1649128205251,0.17612935,46698.0,46696.0,0.207116]
[1649128205854,0.17612935,46699.0,46696.0,0.207116]
[1649128207162,0.17612935,46700.0,46696.0,0.207116]
[1649128208011,0.17612935,46699.0,46696.0,0.207116]
[1649128208161,0.17612935,46699.0,46696.0,0.20765668]
[1649128208265,0.17612935,46698.0,46696.0,0.00054068]
[1649128208610,0.17612935,46699.0,46696.0,0.00054068]
[1649128208907,0.17612935,46698.0,46696.0,0.00054068]
[1649128209107,0.17612935,46698.0,46691.0,0.01071]
[1649128209209,0.52810889,46701.0,46694.0,0.22585217]
[1649128209310,0.52810889,46701.0,46695.0,0.00054069]
[1649128209412,0.30791304,46701.0,46695.0,0.00054069]
[1649128209755,0.52810889,46701.0,46695.0,0.00054069]
[1649128210307,0.52810889,46701.0,46690.0,1.47156186]
[1649128210404,0.52810889,46701.0,46691.0,0.260679]
[1649128210504,0.22956046,46700.0,46696.0,0.0005407]
[1649128211561,0.22956046,46700.0,46692.0,0.207134]
[1649128211757,0.22956046,46700.0,46696.0,0.0005407]
[1649128212757,0.22956046,46700.0,46691.0,0.05354]
[1649128212857,0.22956046,46700.0,46692.0,0.207134]
[1649128212958,0.22956046,46700.0,46696.0,0.0005407]
[1649128213904,0.22956046,46700.0,46690.0,1.48227186]
[1649128214005,0.3,46699.0,46690.0,1.48227186]
[1649128214105,0.17605897,46698.0,46696.0,0.0005407]
[1649128215108,0.17605897,46698.0,46690.0,1.47156186]
[1649128215214,0.17605897,46698.0,46691.0,0.20714]
[1649128215313,0.17605897,46698.0,46695.0,0.00054071]
[1649128215611,0.17605897,46697.0,46695.0,0.00054071]
[1649128216112,0.17605897,46696.0,46695.0,0.00054071]
[1649128216312,0.17605897,46696.0,46690.0,1.47156186]
[1649128216413,0.25907145,46695.0,46691.0,0.20714]
[1649128216513,0.25907145,46695.0,46693.0,0.00054072]
[1649128216914,0.25907145,46695.0,46694.0,0.207129]
[1649128217250,0.17605897,46696.0,46694.0,0.207129]
[1649128217500,0.17605897,46697.0,46694.0,0.207129]
[1649128217698,0.3,46696.0,46694.0,0.207129]
[1649128217801,0.3,46696.0,46693.0,0.00054072]
[1649128217802,0.47605897,46696.0,46693.0,0.00054072]
[1649128217906,0.17605897,46694.0,46693.0,0.00054072]
[1649128217999,0.17605897,46694.0,46693.0,0.00046458]
[1649128218302,0.48540343,46694.0,46693.0,0.00046458]
[1649128218699,0.48540343,46694.0,46684.0,0.1862]
[1649128218700,0.48540343,46694.0,46685.0,0.01071]
[1649128218802,0.47605897,46693.0,46689.0,0.207151]
[1649128219002,0.47608895,46693.0,46689.0,0.207151]
[1649128219101,0.47608895,46693.0,46689.0,0.05311001]
[1649128219250,0.47608895,46693.0,46685.0,0.01071]
[1649128219451,0.47608895,46693.0,46689.0,0.053114]
[1649128219753,0.47608895,46693.0,46684.0,0.1862]
[1649128219754,0.17608895,46692.0,46684.0,0.1862]
[1649128219852,0.17608895,46692.0,46689.0,0.053113]
[1649128221104,0.17608895,46692.0,46684.0,0.01071]
[1649128221209,0.0428,46691.0,46680.0,0.17566578]
[1649128221305,0.3,46690.0,46678.0,0.01071]
[1649128221455,0.32189,46689.0,46678.0,0.01071]
[1649128221561,0.62189,46689.0,46678.0,0.01071]
[1649128221655,0.66469,46689.0,46678.0,0.01071]
[1649128221801,0.36469,46689.0,46678.0,0.01071]
[1649128221901,0.0428,46689.0,46678.0,0.01071]
[1649128222100,0.0428,46689.0,46683.0,0.2312105]
[1649128222302,0.0428,46689.0,46688.0,0.6566538]
[1649128222401,0.22019585,46690.0,46688.0,0.6566538]
[1649128222500,0.22019585,46690.0,46688.0,0.6035368]
[1649128222603,0.17610554,46689.0,46688.0,0.6035368]
[1649128222703,0.17610554,46691.0,46688.0,0.6566538]
[1649128222801,0.17610554,46691.0,46688.0,0.6035368]
[1649128222900,0.17610554,46691.0,46689.0,0.053115]
[1649128224961,0.17610554,46692.0,46689.0,0.053115]
[1649128225163,0.17610554,46691.0,46689.0,0.053115]
[1649128225562,0.17610554,46691.0,46689.0,0.263115]
[1649128226317,0.17610554,46692.0,46689.0,0.263115]
[1649128226416,0.17610554,46692.0,46691.0,0.053111]
[1649128226617,0.17610554,46693.0,46691.0,0.053111]
[1649128226720,0.17610554,46694.0,46691.0,0.106649]
[1649128227266,0.17610554,46694.0,46691.0,0.053111]
[1649128227367,0.17610554,46694.0,46691.0,0.30363365]
[1649128227468,0.17610554,46694.0,46691.0,0.053111]
[1649128228552,0.17610554,46694.0,46691.0,0.28940152]
[1649128228949,0.17610554,46694.0,46691.0,0.053111]
[1649128230450,0.17610554,46693.0,46691.0,0.053111]
[1649128230551,0.17610554,46694.0,46691.0,0.053111]
[1649128230651,0.17610554,46693.0,46691.0,0.053111]
[1649128234902,0.17599664,46693.0,46691.0,0.053111]
[1649128239061,0.17599664,46693.0,46692.0,0.3]
[1649128239161,0.17599664,46693.0,46692.0,0.353108]
[1649128239262,0.17599664,46693.0,46692.0,0.406644]
[1649128239362,0.22019585,46696.0,46692.0,0.406644]
[1649128239462,0.22019585,46700.0,46693.0,0.053105]
[1649128239562,0.22019585,46701.0,46693.0,0.053105]
[1649128240416,0.22019585,46701.0,46694.0,0.053532]
[1649128240619,0.22019585,46701.0,46695.0,0.053098]
[1649128241066,0.22519448,46702.0,46695.0,0.053098]
[1649128241067,0.22019585,46700.0,46695.0,0.053098]
[1649128241276,0.22019585,46699.0,46695.0,0.053098]
[1649128241369,0.22019585,46700.0,46695.0,0.053098]
[1649128242975,0.22019585,46700.0,46695.0,0.05367827]
[1649128243075,0.22019585,46699.0,46695.0,0.05367827]
[1649128243976,0.22019585,46699.0,46695.0,0.053098]
[1649128244180,0.22019585,46699.0,46695.0,0.05367827]
[1649128245026,0.17609335,46697.0,46695.0,0.05367827]
[1649128245127,0.22019585,46699.0,46695.0,0.053098]
[1649128245128,0.17609335,46696.0,46695.0,0.053098]
[1649128245428,0.17609335,46697.0,46695.0,0.053098]
[1649128246027,0.17609335,46698.0,46695.0,0.053098]
[1649128247462,0.17609335,46697.0,46695.0,0.053098]
[1649128247759,0.22019585,46699.0,46695.0,0.053098]
[1649128247760,0.17609335,46696.0,46695.0,0.053098]
[1649128247961,0.17609335,46697.0,46695.0,0.053098]
[1649128248660,0.17609335,46698.0,46695.0,0.053098]
[1649128248761,0.17609335,46697.0,46695.0,0.053098]
[1649128249062,0.17609335,46697.0,46692.0,0.43817788]
[1649128249161,0.17609335,46698.0,46692.0,0.23337854]
[1649128249261,0.17609335,46697.0,46691.0,0.224836]
[1649128249713,0.17609335,46697.0,46692.0,0.107063]
[1649128250211,0.17609335,46697.0,46694.0,0.24297603]
[1649128250512,0.17609335,46697.0,46693.0,0.053535]
[1649128251063,0.17609335,46698.0,46693.0,0.053535]
[1649128251666,0.17609335,46698.0,46694.0,0.33322853]
[1649128251768,0.17609335,46699.0,46694.0,0.38675853]
[1649128251865,0.17609335,46701.0,46694.0,0.54381053]
[1649128251964,0.17609335,46701.0,46694.0,0.49027753]
[1649128252068,0.17609335,46702.0,46696.0,0.760845]
[1649128252168,0.17609335,46705.0,46696.0,0.810845]
[1649128252270,0.17609335,46706.0,46697.0,0.88295168]
[1649128252364,0.17609335,46706.0,46698.0,0.38731921]
[1649128252514,0.17609335,46707.0,46699.0,0.01071]
[1649128252615,0.17609335,46708.0,46699.0,0.01071]
[1649128252715,0.00061382,46703.0,46702.0,0.30929131]
[1649128252815,0.00061382,46703.0,46702.0,1.35415253]
[1649128252915,0.00061382,46703.0,46702.0,1.40415253]
[1649128253013,0.00061382,46703.0,46702.0,1.12380131]
[1649128253113,0.00061382,46703.0,46702.0,1.45459177]
[1649128253314,0.00061382,46703.0,46702.0,2.88047086]
[1649128253415,0.00061382,46703.0,46702.0,2.93398663]
[1649128253567,0.00689222,46711.0,46702.0,3.08382063]
[1649128253666,0.25559309,46713.0,46704.0,0.6538]
[1649128253768,0.25559309,46713.0,46705.0,0.66451]
[1649128253864,0.25559309,46713.0,46709.0,0.31081512]
[1649128254019,0.25559309,46713.0,46710.0,0.096308]
[1649128254117,0.25559309,46713.0,46710.0,0.0428]
[1649128254907,0.51271863,46713.0,46710.0,0.0428]
[1649128255008,0.51271863,46713.0,46709.0,0.08095404]
[1649128255109,0.51271863,46713.0,46709.0,0.13095404]
[1649128255261,0.43158212,46713.0,46709.0,0.13095404]
[1649128255460,0.25559309,46713.0,46709.0,0.13095404]
[1649128255966,0.25559309,46713.0,46709.0,0.49517004]
[1649128256115,0.25559309,46713.0,46710.0,0.107018]
[1649128256366,0.25582786,46713.0,46711.0,0.30706185]
[1649128257064,0.25582786,46713.0,46711.0,0.45706185]
[1649128257165,0.25559309,46713.0,46711.0,0.45706185]
[1649128257870,0.25559309,46713.0,46711.0,0.51056885]
[1649128258068,0.25559309,46713.0,46711.0,0.253507]
[1649128258170,0.25559309,46713.0,46712.0,0.3]
[1649128258369,0.25559309,46713.0,46712.0,0.35]
[1649128258485,0.25559309,46713.0,46712.0,0.45]
[1649128258585,0.25559309,46713.0,46712.0,0.15]
[1649128259186,0.25559309,46713.0,46712.0,0.4407255]
[1649128259289,0.25559309,46713.0,46712.0,1.3945255]
[1649128259393,0.25559309,46713.0,46712.0,1.44815331]
[1649128259488,0.25559309,46713.0,46712.0,1.4480255]
[1649128259587,0.25559309,46713.0,46712.0,1.65885169]
[1649128259790,0.00737297,46714.0,46713.0,4.52772268]
[1649128259889,0.00737297,46714.0,46713.0,4.54924887]
[1649128260038,0.00737297,46714.0,46713.0,4.69204887]
[1649128260141,0.00142424,46716.0,46715.0,0.6538]
[1649128260239,0.00142424,46716.0,46715.0,0.9645]
[1649128260339,0.00142424,46716.0,46715.0,1.11812805]
[1649128260439,0.00142424,46716.0,46715.0,1.16812805]
[1649128260537,0.002,46717.0,46715.0,1.16812805]
[1649128260641,0.00955641,46722.0,46716.0,1.1538]
[1649128260741,0.00955641,46722.0,46717.0,0.97532492]
[1649128260902,0.0071,46722.0,46717.0,1.11812492]
[1649128261095,0.0071,46722.0,46717.0,1.27080635]
[1649128261193,0.0051,46718.0,46717.0,1.27080635]
[1649128261287,0.0011,46718.0,46717.0,1.11812492]
[1649128261388,0.0011,46718.0,46717.0,2.77968588]
[1649128261594,0.0011,46718.0,46717.0,2.47968588]
[1649128262092,0.0011,46718.0,46717.0,2.74642614]
[1649128262220,0.0011,46718.0,46717.0,3.24642614]
[1649128262713,0.0011,46718.0,46717.0,2.59262614]
[1649128262864,0.0011,46718.0,46717.0,2.58180122]
[1649128263065,0.0011,46718.0,46717.0,2.31506096]
[1649128263713,0.0011,46718.0,46717.0,1.81506096]
[1649128263813,0.0011,46718.0,46717.0,1.96775192]
[1649128264665,0.0012,46719.0,46718.0,3.7]
[1649128264770,0.0012,46719.0,46718.0,3.7107]
[1649128264864,0.0012,46719.0,46718.0,3.8535]
[1649128267515,0.0012,46719.0,46718.0,4.3535]
[1649128268318,0.0012,46719.0,46718.0,5.0073]
[1649128269218,0.0012,46719.0,46718.0,4.3535]
[1649128271112,0.0012,46719.0,46718.0,4.5073]
[1649128272668,0.0012,46719.0,46718.0,4.65968965]
[1649128276762,0.0012,46719.0,46718.0,5.15968965]
[1649128277857,0.0063,46720.0,46718.0,5.15968965]
[1649128277961,0.0095346,46721.0,46719.0,2.86811292]
[1649128278059,0.0078246,46721.0,46720.0,0.9645]
[1649128278157,0.0078246,46721.0,46720.0,0.97532492]
[1649128278259,0.0077146,46721.0,46720.0,1.51604007]
[1649128278409,0.002,46726.0,46721.0,0.65467]
[1649128278508,0.002,46726.0,46722.0,0.9645]
[1649128278608,0.002,46726.0,46722.0,1.01812353]
[1649128278708,0.002,46726.0,46722.0,1.16812353]
[1649128278910,0.002,46726.0,46722.0,1.32051318]
[1649128279011,0.002,46726.0,46724.0,0.68894361]
[1649128279110,0.0071,46742.0,46734.0,0.10917826]
[1649128279218,0.00312412,46735.0,46734.0,0.10917826]
[1649128279815,0.00312412,46735.0,46734.0,0.76297826]
[1649128280113,0.00312412,46735.0,46734.0,1.06297826]
[1649128280314,0.00023359,46737.0,46734.0,1.06297826]
[1649128280420,0.00023359,46737.0,46734.0,1.16297826]
[1649128280515,0.00023359,46737.0,46735.0,0.6966]
[1649128280713,0.00023359,46737.0,46735.0,0.7966]
[1649128281209,0.00023359,46737.0,46735.0,0.94870302]
[1649128281311,0.0071,46742.0,46738.0,0.6538]
[1649128281409,0.0071,46742.0,46738.0,0.707276]
[1649128281520,0.0071,46742.0,46738.0,0.76074792]
[1649128281818,0.0071,46742.0,46739.0,0.9538]
[1649128281914,0.0071,46742.0,46739.0,0.9966]
[1649128282018,0.0071,46742.0,46739.0,1.0966]
[1649128282214,0.0071,46742.0,46739.0,1.50497714]
[1649128282314,0.0071,46742.0,46741.0,0.6538]
[1649128282415,0.0071,46742.0,46741.0,0.9538]
[1649128282519,0.0071,46742.0,46741.0,1.0966]
[1649128282718,0.0071,46742.0,46741.0,1.24863135]
[1649128282821,0.0001,46742.0,46741.0,1.24863135]
[1649128282915,0.01,46744.0,46741.0,1.97545354]
[1649128283018,0.01,46744.0,46742.0,0.9538]
[1649128283214,0.01,46744.0,46742.0,1.0966]
[1649128283315,0.01,46744.0,46742.0,1.24863135]
[1649128283416,0.01,46744.0,46742.0,1.25926405]
[1649128283521,0.002,46745.0,46742.0,1.25926405]
[1649128283617,0.002,46745.0,46743.0,0.6538]
[1649128283719,0.0001,46745.0,46743.0,0.6538]
[1649128283817,0.0001,46745.0,46744.0,0.9966]
[1649128284016,0.0001,46745.0,46744.0,1.0966]
[1649128284117,0.0001,46745.0,46744.0,0.94863135]
[1649128284216,0.0001,46745.0,46744.0,1.24863135]
[1649128284967,0.0001,46745.0,46744.0,1.25945268]
[1649128285166,0.0001,46745.0,46744.0,0.45262074]
[1649128285315,0.0001,46745.0,46744.0,1.20642074]
[1649128285614,0.0001,46745.0,46744.0,1.41642074]
[1649128286576,0.0001,46745.0,46744.0,1.45922074]
[1649128286768,0.0001,46745.0,46744.0,1.44839941]
[1649128288657,0.0001,46745.0,46744.0,1.14839941]
[1649128289310,0.0001,46745.0,46744.0,0.49459941]
[1649128289511,0.0001,46745.0,46744.0,0.21]
[1649128290564,0.0001,46745.0,46744.0,0.44047853]
[1649128291061,0.0001,46745.0,46744.0,0.54047853]
[1649128291863,0.0001,46745.0,46744.0,0.84047853]
[1649128293265,0.0001,46745.0,46744.0,0.54047853]
[1649128293466,0.0001,46745.0,46744.0,0.31]
[1649128293672,0.0001,46745.0,46744.0,0.21]
[1649128293817,0.0001,46745.0,46744.0,0.31]
[1649128294318,0.0001,46745.0,46744.0,0.61]
[1649128294620,0.0001,46745.0,46744.0,0.31]
[1649128294820,0.0001,46745.0,46744.0,0.21]
[1649128294918,0.0001,46745.0,46744.0,0.31]
[1649128295121,0.0001,46745.0,46744.0,0.21]
[1649128296219,0.27279119,46745.0,46744.0,0.21]
[1649128296320,0.57279119,46745.0,46744.0,0.21]
[1649128299276,0.57279119,46745.0,46744.0,0.10438099]
[1649128299375,0.0001,46745.0,46744.0,0.10438099]
[1649128303714,0.0001,46745.0,46744.0,0.40438099]
[1649128304474,0.0001,46745.0,46744.0,1.05818099]
[1649128305270,0.0001,46745.0,46744.0,1.15818099]
[1649128305719,0.0001,46745.0,46744.0,0.85818099]
[1649128306619,0.0001,46745.0,46744.0,1.15818099]
[1649128306719,0.0040728,46747.0,46746.0,0.6538]
[1649128306821,0.0040728,46747.0,46746.0,1.1072627]
[1649128306920,0.0040728,46747.0,46746.0,1.1572627]
[1649128307263,0.0040728,46747.0,46746.0,0.5034627]
[1649128307712,0.00383934,46747.0,46746.0,0.2034627]
[1649128307913,0.00383934,46747.0,46746.0,0.1034627]
[1649128309113,0.008754,46757.0,46754.0,0.03139348]
[1649128309215,0.00245933,46756.0,46754.0,0.03139348]
[1649128309420,0.00857617,46759.0,46755.0,1.3]
[1649128309516,0.00857617,46759.0,46754.0,0.03139348]
[1649128310165,0.00357617,46759.0,46754.0,0.03139348]
[1649128310366,0.00352455,46764.0,46755.0,1.85]
[1649128310466,0.00352455,46764.0,46757.0,0.053461]
[1649128311373,0.00352455,46764.0,46757.0,0.23901581]
[1649128311577,0.0031,46766.0,46757.0,0.053461]
[1649128311578,0.00057287,46763.0,46757.0,0.053461]
[1649128311874,0.00057287,46763.0,46757.0,0.106919]
[1649128312580,0.00162455,46766.0,46757.0,0.106919]
[1649128312777,0.21069,46769.0,46757.0,0.106919]
[1649128312778,0.00057287,46762.0,46757.0,0.106919]
[1649128312877,0.00057287,46762.0,46758.0,0.053457]
[1649128313733,0.19662455,46766.0,46758.0,0.053457]
[1649128313829,0.01069,46765.0,46757.0,0.053461]
[1649128313930,0.19662455,46766.0,46757.0,0.053461]
[1649128314080,0.00057287,46762.0,46757.0,0.053461]
[1649128314961,0.19662455,46763.0,46757.0,0.053461]
[1649128315161,0.00057564,46762.0,46757.0,0.053461]
[1649128315262,0.01069,46767.0,46757.0,0.053461]
[1649128315363,0.19653019,46765.0,46757.0,0.053461]
[1649128315962,0.19653019,46765.0,46755.0,0.03089597]
[1649128316265,0.15824883,46766.0,46755.0,0.01069]
[1649128316266,0.19653019,46762.0,46755.0,0.01069]
[1649128316415,0.19653019,46762.0,46754.0,0.03139348]
[1649128318319,0.19653019,46765.0,46754.0,0.03139348]
[1649128318768,0.19653019,46765.0,46756.0,0.00038412]
[1649128318869,0.01069,46764.0,46756.0,0.00038412]
[1649128318969,0.19653019,46765.0,46756.0,0.00038412]
[1649128319169,0.2288278,46768.0,46756.0,0.00038412]
[1649128319273,0.19153019,46766.0,46756.0,0.00038412]
[1649128319377,0.01069,46765.0,46756.0,0.00038412]
[1649128319669,0.01069,46765.0,46757.0,0.05346]
[1649128319770,0.19153019,46766.0,46757.0,0.05346]
[1649128319971,0.00061479,46764.0,46757.0,0.05346]
[1649128320181,0.00061479,46764.0,46757.0,0.04489708]
[1649128320322,0.01069,46767.0,46759.0,2.0]
[1649128320323,0.00275139,46767.0,46759.0,2.0]
[1649128320471,0.2288278,46768.0,46759.0,2.02020424]
[1649128320571,0.2288278,46768.0,46759.0,0.02020424]
[1649128320572,0.01069,46767.0,46759.0,0.02020424]
[1649128320670,0.2288278,46768.0,46759.0,0.02020424]
[1649128320771,0.19153019,46766.0,46759.0,0.02020424]
[1649128321975,0.19153019,46766.0,46754.0,0.08139348]
[1649128322075,0.19153019,46766.0,46754.0,0.03139348]
[1649128323514,0.20222019,46767.0,46758.0,0.00038458]
[1649128323612,0.19153019,46767.0,46758.0,0.00038458]
[1649128323963,0.20222019,46767.0,46758.0,0.00038458]
[1649128324513,0.20222019,46767.0,46754.0,0.03139348]
[1649128324715,0.20222019,46767.0,46760.0,0.00061485]
[1649128324818,0.00061477,46766.0,46760.0,0.00061485]
[1649128325715,0.19153019,46767.0,46755.0,0.01069]
[1649128325816,0.19153019,46767.0,46754.0,0.03139348]
[1649128325963,0.00061478,46766.0,46760.0,0.00061485]
[1649128326966,0.2288278,46768.0,46756.0,0.05346]
[1649128327167,0.00061478,46766.0,46760.0,0.00061485]
[1649128328118,0.01069,46770.0,46757.0,0.05346]
[1649128328318,0.00023216,46766.0,46757.0,0.05346]
[1649128329323,0.29141521,46767.0,46757.0,0.05346]
[1649128329624,0.00023216,46766.0,46757.0,0.05346]
[1649128329958,0.28164737,46767.0,46757.0,3.30346]
[1649128330060,0.01069,46770.0,46757.0,3.30346]
[1649128330160,0.01069,46770.0,46759.0,0.053458]
[1649128330265,0.004,46771.0,46760.0,0.053456]
[1649128330369,0.004,46771.0,46761.0,0.3]
[1649128331161,0.004,46771.0,46762.0,0.23707709]
[1649128331263,0.0033,46771.0,46762.0,0.23707709]
[1649128331363,0.0033,46771.0,46763.0,0.053452]
[1649128331463,0.0033,46771.0,46764.0,0.3]
[1649128331562,0.0033,46771.0,46763.0,0.053452]
[1649128331861,0.0033,46771.0,46763.0,0.106905]
[1649128333161,0.00061674,46769.0,46763.0,0.106905]
[1649128333471,0.00061674,46769.0,46763.0,0.213802]
[1649128334176,0.0033,46771.0,46763.0,0.213802]
[1649128334275,0.0033,46771.0,46765.0,0.10689]
[1649128334377,0.00061675,46768.0,46766.0,0.71571281]
[1649128334477,0.00061675,46768.0,46767.0,0.9538]
[1649128334574,0.00061675,46768.0,46767.0,0.9966]
[1649128334675,0.00061675,46768.0,46767.0,1.0966]
[1649128334774,0.00061675,46768.0,46767.0,1.1466]
[1649128335377,0.0033,46771.0,46767.0,1.200038]
[1649128335480,0.0033,46771.0,46770.0,0.00846981]
[1649128335683,0.0033,46771.0,46770.0,0.70506981]
[1649128335782,0.0033,46771.0,46770.0,1.00506981]
[1649128335878,0.0033,46771.0,46770.0,1.10506981]
[1649128336076,0.0001,46771.0,46770.0,1.10506981]
[1649128336178,0.0001,46771.0,46770.0,1.15506981]
[1649128336382,0.0151,46774.0,46771.0,0.6538]
[1649128336481,0.0151,46774.0,46773.0,0.6538]
[1649128336583,0.005,46776.0,46775.0,0.6538]
[1649128336780,0.005,46776.0,46775.0,0.7538]
[1649128337274,0.005,46776.0,46775.0,1.0538]
[1649128337476,0.005,46776.0,46775.0,0.7538]
[1649128337674,0.005,46776.0,46775.0,1.00710858]
[1649128337873,0.005,46776.0,46775.0,1.21710858]
[1649128338776,0.005,46776.0,46775.0,0.56330858]
[1649128339177,0.25072571,46787.0,46777.0,0.014]
[1649128339278,0.25072571,46787.0,46778.0,0.106864]
[1649128341119,0.25072571,46787.0,46777.0,0.014]
[1649128341322,0.005,46780.0,46777.0,0.014]
[1649128342017,0.25185617,46778.0,46777.0,0.014]
[1649128342465,0.005,46780.0,46777.0,0.014]
[1649128342867,0.00558605,46780.0,46777.0,0.014]
[1649128343467,0.31957268,46778.0,46777.0,0.014]
[1649128344070,0.23596621,46779.0,46777.0,0.014]
[1649128344571,0.00558605,46780.0,46777.0,0.014]
[1649128344720,0.321889,46785.0,46777.0,0.014]
[1649128344820,0.01069,46785.0,46777.0,0.014]
[1649128344918,0.00234383,46787.0,46777.0,0.014]
[1649128345024,0.01060995,46789.0,46777.0,0.014]
[1649128345121,0.27730208,46789.0,46777.0,0.014]
[1649128345224,0.01069,46788.0,46777.0,0.014]
[1649128345569,0.01069,46788.0,46777.0,0.01026818]
[1649128345768,0.2652321,46784.0,46777.0,0.01026818]
[1649128346471,0.00057751,46783.0,46777.0,0.01026818]
[1649128347374,0.2652321,46784.0,46777.0,0.01026818]
[1649128347576,0.00057752,46782.0,46777.0,0.01026818]
[1649128348569,0.2652321,46784.0,46777.0,0.01026818]
[1649128348769,0.00057751,46782.0,46777.0,0.01026818]
[1649128349822,0.2652321,46784.0,46777.0,0.01026818]
[1649128350025,0.00057836,46782.0,46777.0,0.01026818]
[1649128350974,0.2652321,46784.0,46777.0,0.01026818]
[1649128351226,0.00057836,46782.0,46777.0,0.01026818]
[1649128351327,0.32246736,46782.0,46777.0,0.01026818]
[1649128351725,0.321889,46781.0,46777.0,0.01026818]
[1649128351824,0.321889,46780.0,46777.0,0.01026818]
[1649128351925,0.32717813,46782.0,46777.0,0.01026818]
[1649128352263,0.32659977,46782.0,46777.0,0.01026818]
[1649128352463,0.32717813,46782.0,46777.0,0.01026818]
[1649128352562,0.00057836,46782.0,46777.0,0.01026818]
[1649128353065,0.321889,46781.0,46777.0,0.01026818]
[1649128353166,0.00057836,46782.0,46777.0,0.01026818]
[1649128353268,0.321889,46781.0,46777.0,0.01026818]
[1649128353371,0.2652321,46784.0,46777.0,0.01026818]
[1649128353568,0.01082168,46779.0,46777.0,0.01026818]
[1649128353674,0.33271172,46778.0,46777.0,0.01026818]
[1649128354019,0.321889,46781.0,46777.0,0.01026818]
[1649128354220,0.0428,46780.0,46777.0,0.01026818]
[1649128354319,4.01397903,46779.0,46770.0,0.00057843]
[1649128354422,0.24153019,46776.0,46770.0,0.00057843]
[1649128354521,0.321889,46773.0,46770.0,0.00057843]
[1649128354619,0.321889,46773.0,46759.0,0.5]
[1649128354620,0.41698437,46771.0,46759.0,0.5]
[1649128354770,0.41698437,46771.0,46757.0,0.59373363]
[1649128354771,0.59588079,46766.0,46760.0,0.01069]
[1649128354873,0.05,46765.0,46758.0,0.01069]
[1649128355019,0.05,46765.0,46757.0,0.01069]
[1649128355982,0.05,46765.0,46759.0,0.00057847]
[1649128356279,0.30660004,46765.0,46759.0,0.00057847]
[1649128356979,0.30660004,46765.0,46754.0,0.03139348]
[1649128357229,0.30660004,46765.0,46760.0,0.00057891]
[1649128357582,0.25991559,46764.0,46760.0,0.00057891]
[1649128358181,0.321889,46762.0,46755.0,0.01069]
[1649128358285,0.24283066,46763.0,46754.0,0.03139348]
[1649128358387,0.24283066,46763.0,46760.0,0.00057891]
[1649128358484,0.29775013,46761.0,46760.0,0.00057891]
[1649128358681,0.34055013,46761.0,46760.0,0.00057891]
[1649128359182,0.47540652,46761.0,46760.0,0.00057891]
[1649128359381,0.47540652,46761.0,46760.0,0.21]
[1649128359484,0.79729552,46761.0,46760.0,0.21]
[1649128359582,1.0401246,46761.0,46760.0,0.21]
[1649128362635,1.9,46760.0,46758.0,0.00057846]
[1649128362734,0.24313928,46759.0,46758.0,0.00057846]
[1649128362834,0.29676709,46759.0,46758.0,0.00057846]
[1649128362934,0.29676709,46759.0,46754.0,0.03139348]
[1649128363034,0.01082781,46755.0,46754.0,0.03139348]
[1649128363234,0.05362781,46755.0,46754.0,0.03139348]
[1649128363620,0.66374174,46755.0,46754.0,0.03139348]
[1649128365068,0.65291393,46755.0,46754.0,0.03139348]
[1649128366423,0.97480293,46755.0,46754.0,0.03139348]
[1649128366523,0.65291393,46755.0,46754.0,0.03139348]
[1649128366623,1.24222046,46755.0,46754.0,0.03139348]
[1649128366925,0.97480293,46755.0,46754.0,0.03139348]
[1649128367868,0.66147183,46755.0,46754.0,0.03139348]
[1649128368218,0.92879161,46755.0,46754.0,0.03139348]
[1649128368423,1.46443408,46755.0,46754.0,0.03139348]
[1649128368622,1.46443408,46755.0,46754.0,0.24139348]
[1649128369121,0.15904834,46739.0,46737.0,0.0107]
[1649128369222,0.26490368,46743.0,46737.0,0.0107]
[1649128369323,0.22838479,46741.0,46737.0,0.0107]
[1649128369421,0.22910078,46740.0,46737.0,0.0107]